bitfinex/quotes_ETHUSD_20251107
["timestamp","ask_amount","ask_price","bid_price","bid_amount"]
[1762484014677,0.6846,3341.1,3340.6,2.99347389]
[1762484014879,0.186,3340.7,3340.5,0.40040813]
[1762484015189,0.186,3340.7,3340.4,2.99364088]
[1762484015407,0.186,3340.7,3340.2,2.99381508]
[1762484015611,0.186,3340.7,3340.4,2.99361743]
[1762484015820,0.186,3340.7,3340.2,0.42425151]
[1762484016037,0.186,3340.7,3340.1,0.1506]
[1762484016331,2.99325859,3340.9,3340.1,0.8916]
[1762484016332,0.186,3340.9,3340.1,0.8916]
[1762484016482,0.6846,3340.9,3340.1,3.88550275]
[1762484016810,0.6846,3340.9,3340.2,0.68795752]
[1762484017117,0.186,3341.3,3340.4,2.99365345]
[1762484017280,0.186,3341.3,3340.9,2.99314408]
[1762484017479,0.186,3341.3,3341.0,2.99304441]
[1762484017675,0.4986,3342.0,3341.2,0.4598]
[1762484017920,0.4986,3342.0,3341.5,2.99263757]
[1762484018210,0.186,3342.1,3341.2,0.4598]
[1762484018518,0.186,3342.1,3341.6,2.99257817]
[1762484018835,0.186,3342.1,3341.6,2.99251132]
[1762484019326,0.6652,3342.1,3341.6,2.99251132]
[1762484019531,0.4776,3341.7,3340.3,3.788]
[1762484019725,0.4776,3341.5,3340.6,1.23326941]
[1762484019882,3.47033811,3341.5,3340.6,3.73646379]
[1762484020082,3.47033811,3341.5,3340.7,0.02993384]
[1762484020083,0.4776,3341.5,3340.7,0.02993384]
[1762484020293,3.47028435,3341.5,3340.8,2.99322225]
[1762484020497,3.94948435,3341.5,3340.8,2.99322225]
[1762484020706,3.94948435,3341.5,3340.8,2.99326371]
[1762484021110,2.99281688,3341.4,3340.6,0.743]
[1762484021276,3.44615752,3341.4,3340.6,0.743]
[1762484021479,3.44615752,3341.4,3340.7,2.99337554]
[1762484021676,2.99275752,3341.4,3340.7,2.99337554]
[1762484021916,3.44615752,3341.4,3340.7,2.99337554]
[1762484022318,2.99228371,3342.0,3340.1,0.1506]
[1762484022319,0.4534,3341.3,3340.1,0.1506]
[1762484022520,0.1969,3340.8,3340.4,2.9936368]
[1762484022731,0.1969,3340.8,3340.2,2.9938327]
[1762484022950,0.1969,3340.8,3340.4,2.99361367]
[1762484023162,0.1969,3340.8,3340.1,0.8916]
[1762484023450,0.1969,3340.8,3340.2,0.1654204]
[1762484023620,0.1969,3340.8,3340.7,0.1496]
[1762484023820,0.1969,3341.0,3340.7,0.1496]
[1762484025438,0.1969,3340.9,3340.7,0.1496]
[1762484025633,0.4642,3340.8,3340.7,0.1496]
[1762484026151,0.1969,3340.9,3340.7,0.1496]
[1762484027623,0.6503,3340.9,3340.7,0.1496]
[1762484027823,0.1969,3340.9,3340.7,0.1496]
[1762484028130,0.1969,3340.9,3340.7,3.14292827]
[1762484028463,4.25239896,3341.5,3340.7,3.14292827]
[1762484028464,0.188,3342.1,3340.9,0.405504]
[1762484028765,0.188,3342.1,3341.7,2.99243398]
[1762484029059,0.188,3342.1,3341.6,2.99255696]
[1762484029554,0.188,3342.1,3341.8,2.99239916]
[1762484029873,0.002,3342.1,3342.0,3.34932022]
[1762484030015,0.002,3342.1,3341.8,3.29455228]
[1762484030016,0.002,3342.1,3341.8,0.30223258]
[1762484030349,0.002,3342.1,3341.7,0.742]
[1762484030350,0.002,3342.1,3341.7,3.73448201]
[1762484030581,0.002,3342.1,3342.0,2.99222022]
[1762484035049,0.002,3342.1,3341.7,0.742]
[1762484035250,0.002,3342.1,3342.0,2.99222022]
[1762484037181,0.9196,3342.1,3341.7,2.99240481]
[1762484037386,0.002,3342.1,3342.0,0.3571]
[1762484037687,0.002,3342.5,3342.4,2.99186213]
[1762484037987,0.002,3342.5,3342.4,4.08796213]
[1762484038197,0.002,3342.5,3342.4,4.44506213]
[1762484038359,0.002,3342.5,3342.4,5.77298749]
[1762484039203,0.1969,3343.6,3343.5,2.99087782]
[1762484039367,0.1488,3344.0,3342.5,2.99177262]
[1762484039368,0.4534,3344.0,3342.8,2.99150412]
[1762484039567,0.4534,3344.0,3343.0,2.99130981]
[1762484039770,0.4534,3344.0,3343.1,3.73017091]
[1762484039959,0.4534,3344.0,3342.6,2.99166481]
[1762484040161,2.99076892,3343.7,3342.7,2.99159362]
[1762484040357,2.99053519,3343.9,3342.8,0.02991504]
[1762484040658,0.002,3342.9,3342.7,2.99156629]
[1762484040875,0.002,3342.9,3342.8,2.99150412]
[1762484041664,0.002,3342.9,3342.8,3.75410812]
[1762484042191,0.002,3342.9,3342.8,3.78402316]
[1762484042392,0.002,3342.9,3342.8,4.50557679]
[1762484042892,0.002,3342.9,3342.8,4.89259183]
[1762484043063,0.002,3342.9,3342.8,4.86267679]
[1762484045095,0.002,3342.9,3342.8,5.60067679]
[1762484046539,0.4534,3344.5,3343.2,0.405504]
[1762484046842,0.4534,3344.5,3344.0,2.99035221]
[1762484046996,0.4534,3344.5,3344.1,2.99033147]
[1762484047191,0.4534,3344.5,3344.0,2.99040536]
[1762484047387,0.6611,3343.9,3343.8,0.738]
[1762484047622,0.6611,3343.9,3343.6,0.738]
[1762484047796,0.4534,3343.8,3343.2,0.405504]
[1762484048001,0.4642,3343.3,3342.5,0.3571]
[1762484048222,0.1969,3345.1,3343.8,0.4696]
[1762484048426,0.90315653,3345.9,3345.0,0.6541]
[1762484048725,0.1969,3345.8,3344.7,0.51]
[1762484048923,0.1969,3345.8,3344.7,0.458]
[1762484049089,0.005,3345.9,3344.8,0.405504]
[1762484049296,0.005,3345.9,3345.8,3.6429218]
[1762484049801,0.005,3345.9,3345.8,4.6552258]
[1762484050205,1e-08,3345.9,3345.8,7.0561378]
[1762484050507,0.4864,3346.6,3345.8,1.4388]
[1762484050706,0.4864,3346.6,3345.9,2.98872417]
[1762484050895,0.4864,3346.6,3345.8,2.9888218]
[1762484051223,0.1969,3346.7,3345.5,3.18411819]
[1762484051224,0.1969,3346.7,3345.9,0.38501836]
[1762484051412,0.4864,3346.6,3345.5,0.1951]
[1762484051615,0.4864,3346.6,3345.6,0.02989]
[1762484051814,0.1969,3346.7,3345.6,0.02989]
[1762484052012,0.1969,3346.7,3346.0,2.98857967]
[1762484052192,0.1969,3346.7,3346.1,3.01842555]
[1762484052396,0.1969,3346.7,3346.1,0.02988553]
[1762484052629,0.1969,3346.7,3346.1,2.98855298]
[1762484052804,0.1969,3346.7,3345.7,0.4589]
[1762484053009,0.6833,3346.7,3345.5,0.1951]
[1762484053212,2.98836115,3346.4,3345.5,0.1951]
[1762484053439,2.98810733,3346.6,3345.4,0.75]
[1762484053440,2.98819662,3346.5,3345.4,0.75]
[1762484053611,2.9884439,3346.3,3345.4,0.75]
[1762484053939,2.9884439,3346.3,3345.0,0.1845]
[1762484053940,0.02547995,3346.2,3345.0,0.1845]
[1762484054155,0.0704,3345.1,3344.3,0.748]
[1762484054355,0.1852,3345.5,3343.7,1.3914]
[1762484054356,0.0129,3344.8,3343.7,1.3914]
[1762484054649,0.4864,3345.4,3343.8,0.4589]
[1762484054945,2.98926852,3345.3,3344.2,2.99022367]
[1762484055104,2.98936266,3345.2,3344.2,2.99025177]
[1762484055439,0.02547995,3345.1,3343.7,1.3914]
[1762484055737,2.98955943,3345.0,3343.8,0.4589]
[1762484055907,2.98936203,3345.2,3344.3,2.9901613]
[1762484056106,0.4864,3345.3,3344.3,2.9901613]
[1762484056307,2.98946027,3345.1,3344.4,2.99006364]
[1762484056704,1.259712,3345.4,3344.2,0.02990251]
[1762484056904,0.4864,3345.1,3343.9,2.99044108]
[1762484057108,2.98982621,3344.7,3343.9,0.43284451]
[1762484057337,2.98974242,3344.8,3343.9,0.43284451]
[1762484057637,2.9896364,3344.9,3344.1,2.99027338]
[1762484057803,2.98962599,3344.9,3343.9,3.4233499]
[1762484058006,0.4864,3344.8,3343.7,0.9325]
[1762484058206,0.4864,3344.8,3343.7,0.748]
[1762484058438,0.4864,3344.8,3343.4,0.4589]
[1762484058750,0.4864,3344.8,3343.5,0.405504]
[1762484058949,0.1852,3345.0,3343.5,0.02990877]
[1762484059255,0.1852,3345.0,3343.8,0.405504]
[1762484059410,0.1852,3345.0,3344.4,2.99000698]
[1762484059741,0.1852,3345.0,3344.0,0.4354083]
[1762484059944,0.1852,3345.0,3344.4,2.99000315]
[1762484060120,0.1852,3345.0,3344.3,2.99015451]
[1762484060308,0.1852,3345.0,3344.2,2.99025177]
[1762484060536,0.1852,3345.0,3344.6,2.98982877]
[1762484060735,0.002,3345.1,3344.9,0.1488]
[1762484062137,0.002,3345.1,3345.0,3.85324062]
[1762484062474,0.002,3345.1,3345.0,4.68391327]
[1762484063038,0.002,3345.1,3345.0,4.71380863]
[1762484063235,0.002,3345.1,3345.0,5.55885342]
[1762484063773,0.002,3345.1,3345.0,2.53942144]
[1762484063973,0.002,3345.1,3345.0,3.39504062]
[1762484064870,0.002,3345.1,3344.5,0.4589]
[1762484065074,0.002,3345.1,3344.6,0.405504]
[1762484065257,0.002,3345.1,3344.7,3.788]
[1762484065456,0.002,3345.1,3344.8,3.81789715]
[1762484065659,0.002,3345.1,3344.8,6.80758024]
[1762484065860,0.0941,3344.9,3344.7,3.79]
[1762484066277,2.99451537,3344.8,3344.3,3.79]
[1762484066477,2.99451537,3344.8,3343.4,6.42]
[1762484066478,0.0057,3344.2,3343.6,3.79]
[1762484066635,0.4864,3344.7,3343.7,2.9906198]
[1762484066950,0.4864,3345.0,3344.0,2.99035076]
[1762484067149,2.98986332,3344.7,3344.0,2.99035076]
[1762484067392,2.98986617,3344.7,3344.0,2.99042642]
[1762484067552,0.0941,3344.1,3343.5,3.79]
[1762484067740,0.0941,3344.1,3343.6,3.79]
[1762484067939,0.0941,3344.1,3343.5,0.4536]
[1762484068169,3.56694373,3344.1,3343.2,2.99107756]
[1762484068385,3.56694373,3344.1,3343.3,2.9909985]
[1762484068714,3.56694373,3344.1,3343.4,2.99095928]
[1762484069120,0.5766,3344.1,3343.5,2.9908767]
[1762484069269,0.0941,3344.1,3343.5,2.9908767]
[1762484069475,0.4825,3344.4,3343.6,0.02990788]
[1762484069693,0.4825,3344.4,3343.8,2.99052168]
[1762484069866,3.47257491,3344.4,3343.7,2.9906759]
[1762484070066,3.47257491,3344.4,3343.0,6.78129134]
[1762484070067,0.2823,3343.8,3343.2,2.99112137]
[1762484070300,0.0134,3343.6,3342.8,0.746]
[1762484070483,0.0134,3343.6,3343.1,2.99119609]
[1762484070884,0.0134,3343.6,3342.9,0.4300242]
[1762484071080,0.0134,3343.6,3343.0,2.99125598]
[1762484071284,0.4864,3343.5,3342.8,0.746]
[1762484071504,0.4864,3343.5,3342.8,0.001]
[1762484071804,2.99114159,3343.3,3342.8,0.001]
[1762484072192,0.3331,3343.8,3343.2,0.1488]
[1762484072528,2.99105674,3343.3,3343.2,0.1488]
[1762484072672,3.46775674,3343.3,3343.2,0.1488]
[1762484072869,0.5929,3343.3,3343.2,0.1488]
[1762484073072,0.3331,3343.8,3343.2,0.1488]
[1762484073073,0.1162,3343.7,3343.2,0.1488]
[1762484073511,0.1162,3343.7,3342.8,0.001]
[1762484073712,0.1162,3343.7,3343.5,0.1488]
[1762484074087,0.1843,3343.8,3343.5,0.1488]
[1762484074299,0.1852,3345.0,3343.1,3.18632869]
[1762484074300,0.6716,3344.3,3343.7,2.99062502]
[1762484074585,0.6716,3344.3,3343.2,0.864404]
[1762484074989,0.4864,3344.2,3342.9,0.373668]
[1762484075216,0.4864,3344.2,3343.1,3.18632665]
[1762484075518,2.99037926,3344.1,3343.2,3.49112589]
[1762484075699,0.4864,3344.2,3343.2,0.5]
[1762484075902,0.1057,3343.3,3343.2,0.5]
[1762484076104,0.1057,3343.3,3343.0,2.99131248]
[1762484076306,2.99029664,3344.2,3343.2,2.99106486]
[1762484076307,0.4826,3343.8,3343.2,2.99106486]
[1762484076506,0.4826,3343.8,3343.0,3.29054592]
[1762484076720,0.4826,3343.8,3343.2,2.9910815]
[1762484076923,3.47321762,3343.8,3343.2,2.9910815]
[1762484077110,0.4826,3343.8,3343.2,2.9910815]
[1762484077424,2.9907598,3343.7,3343.1,2.99123493]
[1762484077582,0.4789,3343.8,3343.2,2.99109035]
[1762484077920,3.46953734,3343.8,3343.2,2.99109035]
[1762484078529,0.1852,3344.3,3343.2,2.99109035]
[1762484078530,2.99042319,3344.1,3343.4,2.9909574]
[1762484078681,0.679,3344.3,3343.8,2.99057777]
[1762484078682,0.1852,3344.3,3343.8,2.99057777]
[1762484078882,0.0985,3343.9,3343.3,2.99105674]
[1762484079133,0.0985,3343.9,3343.2,0.59834047]
[1762484079134,0.4938,3344.2,3343.1,0.1861]
[1762484079422,0.4938,3344.2,3343.2,0.02991146]
[1762484079578,0.1852,3344.3,3343.2,0.02991146]
[1762484079778,0.4938,3344.9,3343.4,0.405504]
[1762484080017,0.4938,3344.9,3343.5,4.25588659]
[1762484080212,1.259712,3344.7,3344.1,2.99027957]
[1762484080610,1.259712,3344.8,3344.2,2.99019033]
[1762484081129,3.47684793,3344.8,3344.2,2.99019033]
[1762484081414,3.47691434,3344.7,3344.0,2.99037444]
[1762484081615,3.47691434,3344.7,3344.0,2.99038385]
[1762484081917,0.4871,3344.7,3343.7,0.02990698]
[1762484082086,0.4871,3344.7,3344.2,2.99024858]
[1762484082416,0.4871,3344.7,3344.1,2.99032851]
[1762484082814,2.9897418,3344.8,3344.1,2.99032851]
[1762484083003,0.1852,3345.0,3344.3,2.99016236]
[1762484083207,0.1852,3345.0,3344.4,0.02990072]
[1762484083409,0.002,3345.1,3344.2,0.52210251]
[1762484083720,0.002,3345.1,3344.1,0.1933]
[1762484083935,0.4871,3345.0,3344.1,0.1933]
[1762484084084,0.002,3345.1,3344.1,0.1933]
[1762484084284,0.002,3345.1,3344.8,0.1488]
[1762484084543,0.4871,3345.0,3344.8,0.1488]
[1762484084690,0.2767,3344.9,3344.8,0.1488]
[1762484085790,0.002,3345.1,3344.8,0.1488]
[1762484085990,0.002,3345.1,3344.8,3.13849215]
[1762484086322,0.002,3345.1,3345.0,0.1488]
[1762484087421,0.0981,3345.1,3345.0,0.1488]
[1762484087822,0.5783,3345.1,3345.0,0.1488]
[1762484088409,0.0981,3345.1,3345.0,0.1488]
[1762484088720,0.102,3345.1,3345.0,0.1488]
[1762484089028,0.102,3345.1,3344.8,0.1488]
[1762484089398,0.002,3345.1,3344.8,0.1488]
[1762484090005,2.97847801,3345.2,3344.8,0.1488]
[1762484090200,0.1488,3345.4,3344.8,0.1488]
[1762484090420,2.98928507,3345.3,3344.8,0.1488]
[1762484090637,2.98925172,3345.4,3344.7,2.98979878]
[1762484090845,2.98925152,3345.4,3345.0,0.1488]
[1762484091339,0.4871,3345.4,3345.0,0.1488]
[1762484091547,3.13794779,3345.5,3345.0,0.1488]
[1762484091909,2.98943217,3345.2,3345.0,0.1488]
[1762484092109,0.0931,3345.1,3345.0,0.1488]
[1762484093610,2.98998355,3344.5,3344.4,3.79]
[1762484093917,2.98985652,3344.7,3343.6,6.9122]
[1762484093918,0.1846,3345.0,3344.8,0.1488]
[1762484094120,0.1846,3345.0,3344.4,0.4679]
[1762484094326,2.98933389,3345.3,3344.5,0.02989983]
[1762484094529,2.98918195,3345.4,3344.4,0.02990072]
[1762484094721,2.98942405,3345.2,3344.4,2.99001676]
[1762484095132,3.47639996,3345.3,3344.6,2.98988109]
[1762484095316,0.4871,3345.3,3344.4,0.39203193]
[1762484095524,2.98947373,3345.1,3344.4,3.38204325]
[1762484095740,2.98962298,3345.0,3344.4,0.39203193]
[1762484095949,2.98944725,3345.1,3344.2,3.79]
[1762484096253,0.4871,3345.2,3344.3,2.99010602]
[1762484096425,2.9897335,3344.8,3344.2,3.79]
[1762484096747,2.98980715,3344.7,3344.5,0.001]
[1762484096937,2.98972946,3344.8,3344.5,0.001]
[1762484097258,2.98951378,3345.1,3344.5,0.001]
[1762484097463,2.98954163,3345.0,3344.5,0.001]
[1762484097661,2.98964957,3344.9,3344.5,0.001]
[1762484097814,0.4871,3345.1,3344.5,0.001]
[1762484098436,2.98936727,3345.2,3344.5,0.001]
[1762484098651,2.98936727,3345.2,3344.5,0.42932]
[1762484098849,2.99110213,3345.5,3344.6,2.98983174]
[1762484099067,1.259712,3345.3,3344.6,2.98983174]
[1762484099532,0.002,3345.5,3345.2,0.6612]
[1762484099731,0.002,3345.5,3344.8,3.79]
[1762484099933,0.002,3345.5,3345.1,2.98941644]
[1762484100129,0.002,3345.5,3345.0,2.98947638]
[1762484100378,0.002,3345.5,3345.1,2.9894125]
[1762484100580,0.002,3345.5,3345.1,2.98935797]
[1762484100783,0.002,3345.5,3345.1,0.97689119]
[1762484100967,0.002,3345.5,3345.2,2.98927188]
[1762484101165,0.002,3345.5,3345.1,2.98942401]
[1762484101467,0.002,3345.5,3345.4,0.4679]
[1762484101669,0.005,3346.9,3345.5,0.405504]
[1762484101854,0.005,3346.9,3346.2,2.9884434]
[1762484102172,0.005,3346.9,3346.2,0.29884434]
[1762484102373,0.005,3346.9,3345.9,0.746]
[1762484102575,0.005,3346.9,3346.0,0.1933]
[1762484102877,0.005,3346.9,3346.5,2.98812974]
[1762484103176,0.005,3346.9,3346.6,2.98809201]
[1762484103477,0.005,3346.9,3346.5,2.98817417]
[1762484103863,0.4921,3346.9,3346.5,2.98817417]
[1762484104188,0.005,3346.9,3346.8,3.45582876]
[1762484104474,0.005,3346.9,3346.8,5.68871838]
[1762484104677,0.005,3346.9,3346.8,5.24833276]
[1762484105277,5.69720886,3349.2,3346.8,2.260404]
[1762484105487,0.8125,3493.0,3346.8,2.260404]
[1762484105488,0.91327765,3360.0,3349.1,5.69720886]
[1762484105716,0.91327765,3360.0,3352.9,0.09999999]
[1762484105717,5.69720886,3354.2,3352.9,0.09999999]
[1762484105867,5.69720886,3355.5,3352.5,0.09999999]
[1762484106212,5.69720886,3355.5,3352.5,4.16354297]
[1762484106371,5.69720886,3354.3,3352.3,1.0510311]
[1762484106572,0.0643,3352.6,3352.3,0.15588949]
[1762484106767,0.0643,3352.6,3351.0,0.26869999]
[1762484106973,0.1286,3352.6,3350.7,0.1933]
[1762484107269,2.98357007,3351.7,3350.7,0.09999999]
[1762484107482,2.98360173,3351.7,3350.7,0.09999999]
[1762484107683,6.95692086,3351.6,3350.2,0.09999999]
[1762484107882,1.259712,3351.5,3349.7,0.09999999]
[1762484108483,1.259712,3351.1,3349.7,0.09999999]
[1762484108820,6.95692086,3351.1,3349.7,0.09999999]
[1762484109014,1.259712,3350.9,3349.7,0.09999999]
[1762484109216,1.259712,3350.9,3348.4,0.1933]
[1762484109217,5.69720886,3350.1,3349.0,0.09999999]
[1762484109450,1.259712,3350.0,3348.8,0.09999999]
[1762484109918,2.98571502,3349.3,3348.5,0.4922]
[1762484110219,1.259712,3350.0,3348.5,0.59219999]
[1762484110420,1.259712,3349.8,3348.8,0.09999999]
[1762484110622,0.02547995,3349.9,3348.5,0.09999999]
[1762484110822,0.02547995,3349.9,3347.8,0.78733138]
[1762484110823,0.02547995,3349.7,3347.9,0.09999999]
[1762484111020,1.259712,3349.0,3348.1,0.1957]
[1762484111193,2.98622865,3348.8,3348.1,0.09999999]
[1762484111387,0.02547995,3348.7,3347.7,0.09999999]
[1762484111582,2.98624415,3348.7,3347.9,0.09999999]
[1762484111801,1.259712,3348.5,3347.9,0.09999999]
[1762484112118,0.02547995,3348.4,3347.9,0.09999999]
[1762484112325,0.02547995,3348.3,3347.2,0.1933]
[1762484112487,2.98715248,3347.7,3347.1,0.09999999]
[1762484112682,2.98715248,3347.7,3347.3,0.09999999]
[1762484112885,0.02547995,3347.6,3347.3,0.09999999]
[1762484113249,0.02547995,3347.6,3346.9,0.09999999]
[1762484113448,1.259712,3348.1,3346.9,0.09999999]
[1762484113931,1.259712,3347.9,3346.9,0.09999999]
[1762484114106,2.9874034,3347.4,3346.9,0.09999999]
[1762484114307,2.98753654,3347.3,3346.9,0.09999999]
[1762484114641,1.259712,3347.9,3346.9,0.09999999]
[1762484114844,2.98657686,3348.4,3347.1,0.001]
[1762484114845,1.259712,3348.3,3347.1,0.001]
[1762484115217,1.259712,3347.4,3347.1,0.001]
[1762484115629,1.259712,3348.1,3347.1,0.001]
[1762484115928,2.98730725,3347.5,3347.1,0.001]
[1762484116133,1.259712,3347.4,3347.1,0.001]
[1762484117063,2.98739988,3347.4,3347.1,0.001]
[1762484117453,1.259712,3347.4,3347.1,0.001]
[1762484118313,0.1488,3347.6,3347.1,0.001]
[1762484118650,2.9875717,3347.2,3347.1,0.001]
[1762484118825,1.259712,3347.3,3347.1,0.001]
[1762484119151,2.9875717,3347.2,3347.1,0.001]
[1762484119752,4.2472837,3347.2,3347.1,0.001]
[1762484121345,1.259712,3347.2,3347.1,0.001]
[1762484121551,1.259712,3347.7,3347.1,0.59249999]
[1762484121775,0.41847356,3350.9,3347.4,0.09999999]
[1762484121959,0.93686208,3351.1,3347.4,0.09999999]
[1762484122159,1.259712,3347.9,3347.4,0.09999999]
[1762484122475,2.98704489,3347.8,3347.4,0.09999999]
[1762484122683,6.39017461,3350.4,3347.6,0.09999999]
[1762484122983,0.46838852,3351.1,3347.5,3.47880331]
[1762484122984,2.98612154,3348.9,3348.1,0.09999999]
[1762484123144,0.405504,3350.7,3348.1,0.09999999]
[1762484123348,2.9863078,3348.7,3348.1,0.09999999]
[1762484123748,4.24605685,3348.6,3348.1,0.29569999]
[1762484124172,2.98634485,3348.6,3348.1,0.29569999]
[1762484124573,2.98647271,3348.5,3348.1,0.29569999]
[1762484124768,1.259712,3348.5,3348.1,0.29569999]
[1762484124970,2.98642495,3348.5,3348.1,0.29569999]
[1762484125147,1.259712,3348.5,3348.1,0.29569999]
[1762484125353,1.259712,3348.7,3348.1,0.29569999]
[1762484125556,2.98601528,3349.0,3347.6,0.4915]
[1762484125557,2.98712548,3347.7,3347.6,0.09999999]
[1762484125876,1.259712,3348.7,3347.6,0.09999999]
[1762484126083,1.259712,3348.9,3347.6,0.09999999]
[1762484126296,1.259712,3349.6,3347.6,0.09999999]
[1762484126501,1.259712,3349.1,3347.6,0.09999999]
[1762484126791,2.98508744,3350.0,3347.6,0.59149999]
[1762484127006,2.98650463,3348.4,3348.1,0.09999999]
[1762484127346,1.259712,3349.2,3348.2,0.1957]
[1762484127558,2.98605512,3348.9,3347.6,0.09999999]
[1762484127787,0.02547995,3348.8,3347.3,0.09999999]
[1762484127963,0.02547995,3348.8,3347.1,0.1967]
[1762484127964,2.9873617,3347.5,3347.1,0.1967]
[1762484128392,2.98672951,3348.2,3347.1,0.6882]
[1762484128598,0.1488,3347.9,3347.3,0.1488]
[1762484128819,1.259712,3348.5,3347.1,0.6882]
[1762484128820,1.259712,3347.8,3347.1,0.6882]
[1762484129031,2.98730879,3347.5,3347.4,0.09999999]
[1762484129319,2.98740369,3347.4,3347.3,0.09999999]
[1762484129617,2.9872331,3347.6,3347.1,0.3455]
[1762484129618,2.98703548,3347.9,3347.6,0.09999999]
[1762484129921,0.02547995,3347.8,3347.6,0.09999999]
[1762484130088,1.259712,3349.3,3347.6,0.09999999]
[1762484130290,1.49625562,3350.6,3347.6,0.09999999]
[1762484130291,1.259712,3349.7,3347.6,0.09999999]
[1762484130608,2.98552022,3349.5,3347.6,0.09999999]
[1762484130914,0.60188618,3350.2,3347.6,0.59149999]
[1762484131114,2.98507462,3350.0,3347.5,0.09999999]
[1762484131316,2.98678472,3348.1,3347.2,0.4915]
[1762484131516,2.98678472,3348.1,3348.0,0.09999999]
[1762484131723,0.405504,3349.9,3347.5,0.09999999]
[1762484131938,2.98705419,3347.8,3347.5,0.09999999]
[1762484132082,2.98697006,3347.9,3347.5,0.09999999]
[1762484132395,2.98678883,3348.1,3348.0,0.09999999]
[1762484132396,2.98676861,3348.1,3348.0,0.09999999]
[1762484133282,2.9863357,3348.6,3347.3,0.4915]
[1762484133481,2.98607628,3348.9,3347.1,0.1967]
[1762484133482,2.98734048,3347.5,3347.1,0.1967]
[1762484133933,2.98739685,3347.4,3347.1,0.6882]
[1762484134084,2.9875717,3347.2,3347.1,0.001]
[1762484134422,4.27276365,3347.2,3347.1,0.001]
[1762484134605,4.2472837,3347.2,3347.1,0.001]
[1762484137422,2.98819662,3346.5,3346.4,0.09999999]
[1762484137635,2.98846452,3346.2,3346.1,0.1957]
[1762484137814,2.9889723,3345.7,3345.5,0.1933]
[1762484138028,1.259712,3346.4,3345.3,0.09999999]
[1762484138325,1.259712,3346.3,3345.0,0.1957]
[1762484138539,2.98943032,3345.2,3345.0,0.09999999]
[1762484138830,0.02547995,3345.1,3344.5,0.001]
[1762484139001,2.98989415,3344.6,3344.5,0.001]
[1762484139203,4.24960615,3344.6,3344.5,0.001]
[1762484144742,1.259712,3344.6,3344.5,0.001]
[1762484145044,4.24960615,3344.6,3344.5,0.001]
[1762484145733,1.259712,3344.6,3344.5,0.001]
[1762484145921,4.24960615,3344.6,3344.5,0.001]
[1762484151049,4.24996377,3344.2,3344.1,0.001]
[1762484157566,5.27578711,3345.5,3344.1,1.117]
[1762484157726,3.44022545,3347.2,3344.5,0.09999999]
[1762484157927,2.98854154,3346.2,3344.5,0.09999999]
[1762484158128,5.27578711,3345.8,3344.2,0.4646]
[1762484158355,2.9893699,3345.2,3344.7,0.09999999]
[1762484158561,1.259712,3345.3,3344.4,0.09999999]
[1762484158903,2.98935788,3345.2,3345.1,0.1955]
[1762484160300,4.24906988,3345.2,3345.1,0.1955]
[1762484160895,1.259712,3345.2,3345.1,0.6514]
[1762484161060,1.259712,3345.2,3345.1,1.116]
[1762484161389,4.24906988,3345.2,3345.1,1.116]
[1762484161761,1.259712,3345.2,3345.1,1.116]
[1762484162364,5.27578711,3346.5,3345.2,0.09999999]
[1762484162701,0.1488,3345.7,3345.4,0.09999999]
[1762484162906,0.1488,3346.0,3345.6,0.09999999]
[1762484163060,0.1488,3346.0,3345.7,0.4646]
[1762484163261,2.98861511,3346.1,3345.7,0.4646]
[1762484163262,0.1488,3346.5,3345.9,0.70469999]
[1762484163485,0.1488,3346.5,3346.2,0.09999999]
[1762484163672,2.98961205,3347.2,3346.0,0.4559]
[1762484163673,2.98855383,3346.1,3346.0,0.4559]
[1762484163883,2.98855383,3346.1,3345.8,0.56459999]
[1762484163884,2.98873247,3345.9,3345.8,0.4646]
[1762484164271,2.98873247,3345.9,3345.8,0.9205]
[1762484164975,0.1488,3345.9,3345.3,0.24879999]
[1762484165189,0.1488,3345.6,3345.1,0.1955]
[1762484165384,2.98935766,3345.3,3345.1,0.1955]
[1762484165698,0.1488,3345.6,3345.5,0.55589999]
[1762484165699,1.408512,3345.6,3345.5,0.55589999]
[1762484165923,0.1488,3345.8,3345.5,0.55589999]
[1762484166080,1.259712,3346.2,3345.7,0.09999999]
[1762484166271,4.24809653,3346.3,3345.9,0.09999999]
[1762484166471,4.24809653,3346.3,3346.1,0.1955]
[1762484166472,2.98846452,3346.2,3346.1,0.1955]
[1762484166878,1.259712,3346.3,3346.1,0.6514]
[1762484167074,0.002,3347.6,3346.2,0.4559]
[1762484167400,1.259712,3346.4,3346.3,0.09999999]
[1762484167597,4.24799791,3346.4,3346.3,0.09999999]
[1762484167803,0.759712,3346.4,3346.3,1.02049999]
[1762484167990,2.98710389,3347.8,3346.8,0.09999999]
[1762484168309,2.98737154,3347.5,3346.8,0.09999999]
[1762484168510,2.98899929,3347.9,3347.1,0.4559]
[1762484168714,0.002,3347.9,3347.1,0.4559]
[1762484168913,0.002,3347.9,3347.1,1.02049999]
[1762484169320,2.98741552,3347.4,3347.1,1.02049999]
[1762484169653,2.98901238,3347.9,3347.1,1.02049999]
[1762484169796,1.259712,3347.8,3347.1,1.02049999]
[1762484170121,1.261712,3347.2,3347.1,1.02049999]
[1762484170427,4.2492837,3347.2,3347.1,1.02049999]
[1762484171193,0.002,3347.2,3347.1,1.02049999]
[1762484171586,2.9895717,3347.2,3347.1,1.02049999]
[1762484171781,0.002,3347.2,3347.1,1.02049999]
[1762484173196,2.9895717,3347.2,3347.1,0.55589999]
[1762484174035,0.002,3347.2,3347.1,0.55589999]
[1762484174187,2.9895717,3347.2,3347.1,1.04189999]
[1762484174388,0.002,3347.2,3347.1,1.04189999]
[1762484174687,0.002,3347.2,3347.1,4.02956095]
[1762484174882,0.002,3347.6,3347.4,0.09999999]
[1762484175186,2.98676861,3348.1,3347.7,0.09999999]
[1762484175516,0.4852,3349.0,3347.8,0.09999999]
[1762484175693,0.1667,3349.1,3348.0,0.57619999]
[1762484176030,2.98638446,3348.6,3348.3,0.09999999]